[Event "FRA-ch Teams Top 16-B 2022"]
[Site "Chartres"]
[Date "2022.06.12"]
[Round "4.16"]
[White "Djidjeli, Sarah"]
[Black "Afraoui, Anaelle"]
[Result "0-1"]
[ECO "B51"]
[WhiteElo "2040"]
[BlackElo "2115"]
[Annotator "TA"]
[PlyCount "161"]
[EventDate "2022.06.09"]
[EventType "team-tourn"]
[EventCountry "FRA"]
[SourceTitle "playchess.com"]
[Source "ChessBase"]
[SourceQuality "1"]
[TimeControl "40/5400+30:1800+30"]

{[%evp 16,161,37,35,66,65,68,61,66,54,50,47,25,12,19,23,28,14,64,49,77,69,290,308,327,208,315,328,312,185,184,189,278,89,237,185,163,57,162,170,155,162,173,0,0,0,0,-43,-31,-164,-122,-148,-136,-305,-175,-177,-179,-495,-487,-487,-485,-744,-480,-429,-197,-445,-445,-445,-445,-445,-445,-445,-445,-445,-445,-444,-444,-444,-437,-437,-429,-595,-437,-431,-422,-606,-583,-528,-527,-505,-505,-629,-622,-568,-512,-621,-585,-656,-636,-627,-612,-778,-779,-764,-759,-798,-789,-1208,-1194,-781,-1116,-734,-691,-1133,-995,-4568,-4568,-4568,-4149,-4149,-4149,-4149,-4149,-5272,-5272,-5114,-5107,-5089,-5074,-5049,-5049,-29989,-29990,-29990,-29991,-29991,-29992,-29992,-29993,-29993,-29994,-29994,-29995,-29997,-29998,-29998,-29999,-29999]} 1. e4 {[%emt 0:00:01]} c5 {[%emt 0:00:04]} 2. Nf3 {[%emt 0:00:03]} Nc6 {[%emt 0:00:04]} 3. Bb5 {[%emt 0:00:04]} d6 {[%emt 0:00:04]} 4. O-O {[%emt 0:00:15]} Bd7 {[%emt 0:00:11]} 5. Re1 {[%emt 0:01:23]} Nf6 {[%emt 0:00:12]} 6. c3 {[%emt 0:02:28]} a6 {[%emt 0:00:09]} 7. Bf1 {[%emt 0:00:47]} Bg4 {[%emt 0:00:12]} 8. d3 {[%emt 0:01:25]} g6 {[%emt 0:03:50]} 9. Nbd2 {[%emt 0:07:08] [#]} b5 $146 {[%emt 0:16:54] B51: Sicilian: Moscow Variation (3 Bb5+) without 3...Bd7.} ({Predecessor:} 9... Bg7 10. h3 Bxf3 11. Nxf3 O-O 12. d4 cxd4 13. cxd4 Rc8 14. a3 e6 15. Qb3 Na5 16. Qb4 d5 17. e5 Ne4 {1-0 (45) Hammer,J (2635)-Movsesian,S (2654) chess24.com INT 2020}) 10. h3 {[%emt 0:04:53]} Bxf3 {[%emt 0:07:31]} 11. Nxf3 {[%emt 0:00:07]} Bg7 {[%emt 0:00:05] White is slightly better.} 12. a4 {[%emt 0:11:31]} b4 {[%emt 0:07:27]} 13. a5 {[%emt 0:08:02]} O-O {[%emt 0:01:59]} 14. Qa4 {[%emt 0:00:06]} Qc7 {[%emt 0:01:26]} 15. d4 {[%emt 0:07:43]} bxc3 {[%emt 0:09:26]} 16. bxc3 {[%emt 0:00:09]} Nd7 {[%emt 0:00:13]} (16... d5 $1 $11) 17. Be3 {[%emt 0:52:55]} Rfb8 {[%emt 0:01:52]} 18. Bc4 {[%emt 0:00:00][%cal Oc4f7] Threatens to win with Bxf7+!} Ra7 $2 {[%emt 0:12:11] [#]} (18... h6 $14) 19. Bxf7+ $1 $18 {[%emt 0:00:00][%mdl 512]} Kh8 {[%emt 0:01:51]} (19... Kxf7 20. Qc4+) 20. Qa2 {[%emt 0:00:00]} cxd4 {[%emt 0:01:54]} (20... Rb5 {keeps fighting.} 21. Ng5 Rxa5) 21. cxd4 {[%emt 0:00:00]} Nb4 {[%emt 0:00:08]} 22. Qe6 {[%emt 0:00:00]} (22. Qa4 $142) 22... Nf8 {[%emt 0:03:42]} 23. Qg4 {[%emt 0:00:00]} Qd7 {[%emt 0:05:26]} (23... Nc2 $142) 24. Qh4 $2 {[%emt 0:00:00]} (24. Qxd7 $18 {has better winning chances.} Rxd7 25. Reb1) 24... e5 {[%emt 0:03:20]} (24... Nc2 $16) 25. Bc4 {[%emt 0:00:00] dxe5 is the strong threat.} Nc2 {[%emt 0:04:48] [#]} 26. Ng5 {[%emt 0:00:00]} ({White has to play} 26. dxe5 $1 $18 Rc7 (26... Nxe1 27. Rxe1) 27. Bxa6 $1) 26... Nxe1 {[%emt 0:01:45]} ({Better is} 26... exd4 $14 27. Bf4 (27. Nf7+ Qxf7 28. Bxf7 dxe3 $17) 27... Qe8) 27. Nf7+ {[%emt 0:00:00]} Qxf7 {[%emt 0:00:05]} 28. Bxf7 {[%emt 0:00:00] A strong pair of Bishops.} Nc2 {[%emt 0:00:05] [#]} 29. Rc1 {[%emt 0:00:00]} (29. Bd5 $1 $18) 29... Nxe3 $11 {[%emt 0:00:21] Really sharp!} 30. Ba2 {[%emt 0:00:00]} Rb2 {[%emt 0:01:23]} 31. Bb1 {[%emt 0:00:00]} Nc4 {[%emt 0:00:28][%cal Be3c4,Bc4a5,Ba5b3,Bb3c5][%mdl 32]} ({Don't take} 31... exd4 32. fxe3 dxe3 33. Qf4 $14) 32. d5 {[%emt 0:00:00] White is on the road to losing.} ({White should play} 32. Bd3 $15 Nxa5 33. dxe5 dxe5 34. Rc8) 32... Nxa5 {[%emt 0:00:56] Strongly threatening ...Nb3.} 33. Qd8 {[%emt 0:00:00][%csl LRa5,LRd6]} Nb3 {[%emt 0:01:46]} 34. Rd1 {[%emt 0:00:00]} (34. Qb8 $17 {was the only chance.}) 34... Rf7 {[%emt 0:03:20]} (34... Nc5 $142 {aiming for ...Rd7.} 35. Qxd6 Nfd7) 35. f3 $19 {[%emt 0:00:00]} Rd7 {[%emt 0:04:12]} 36. Qc8 {[%emt 0:00:00]} (36. Qb8 {is tougher.} a5 37. Ba2) 36... Nc5 {[%emt 0:00:37]} 37. Bd3 {[%emt 0:00:00]} a5 {[%emt 0:00:42]} 38. Qa8 {[%emt 0:00:00]} (38. Qc6 $142 a4 39. Bc4) 38... a4 {[%emt 0:00:15]} 39. Ba6 {[%emt 0:00:25]} a3 {[%emt 0:05:15]} (39... Bh6 $142 40. Ra1 Kg8) 40. Bc8 $2 {[%emt 0:00:07] [#]} (40. Bf1 {only move.}) 40... a2 $1 {[%emt 0:00:38]} 41. Bxd7 {[%emt 0:30:12][%cal Od1f1]} Rb1 {[%emt 0:30:03][%mdl 64] Zwischenzug} ({Wrong is} 41... Ncxd7 $2 42. Qa3 Rb1 43. Rf1 $19) 42. Rf1 {[%emt 0:00:06]} a1=Q {[%emt 0:00:21]} 43. Qxa1 {[%emt 0:00:25]} Rxa1 {[%emt 0:01:24]} 44. Rxa1 {[%emt 0:00:05]} Nfxd7 {[%emt 0:00:25]} ({Don't go for} 44... Ncxd7 $2 45. Ra6 $19) 45. Ra8+ {[%emt 0:00:04]} Bf8 {[%emt 0:00:19]} 46. Kf2 {[%emt 0:00:02]} Kg8 {[%emt 0:01:15]} 47. Ke3 {[%emt 0:00:05]} Kf7 {[%emt 0:00:08]} 48. g3 {[%emt 0:00:03]} Nb6 {[%emt 0:00:00]} 49. Ra7+ {[%emt 0:00:00]} Be7 {[%emt 0:00:00]} 50. Rc7 {[%emt 0:00:00]} (50. h4 $142) 50... Nc4+ {[%emt 0:00:00]} 51. Ke2 {[%emt 0:00:00]} Na3 {[%emt 0:00:00]} 52. Ra7 {[%emt 0:00:00]} Nb5 {[%emt 0:00:00]} 53. Ra5 {[%emt 0:00:00]} Nd4+ {[%emt 0:00:00]} 54. Ke3 {[%emt 0:00:00]} Bg5+ {[%emt 0:00:00]} 55. f4 {[%emt 0:00:00]} Nc2+ {[%emt 0:00:00]} 56. Kf3 {[%emt 0:00:00]} Bf6 {[%emt 0:00:00]} 57. Ra7+ {[%emt 0:00:00]} Kg8 {[%emt 0:00:00]} 58. Rc7 {[%emt 0:00:00]} Nd4+ {[%emt 0:00:00]} 59. Ke3 {[%emt 0:00:00]} h5 {[%emt 0:09:18]} 60. Ra7 {[%emt 0:00:00]} h4 {[%emt 0:00:00]} 61. gxh4 {[%emt 0:00:00]} exf4+ {[%emt 0:00:00]} 62. Kxf4 {[%emt 0:00:00]} Nb5 {[%emt 0:00:00]} 63. Ra5 {[%emt 0:00:00]} Nc3 {[%emt 0:00:00]} 64. h5 {[%emt 0:00:00]} Kg7 {[%emt 0:00:00]} 65. Ra7+ {[%emt 0:00:00]} Kh6 {[%emt 0:00:00]} 66. hxg6 {[%emt 0:00:00]} Kxg6 {[%emt 0:00:00]} 67. Kg4 {[%emt 0:00:00]} N3xe4 {[%emt 0:00:00]} 68. h4 {[%emt 0:00:00]} Nf2+ {[%emt 0:00:00]} 69. Kg3 {[%emt 0:00:00]} Nce4+ {[%emt 0:00:00]} 70. Kf4 {[%emt 0:00:00]} Bxh4 {[%emt 0:00:00]} 71. Rd7 {[%emt 0:00:00]} Bg3+ {[%emt 0:00:00]} 72. Kf3 {[%emt 0:00:00]} Kf6 {[%emt 0:00:00]} 73. Rxd6+ {[%emt 0:00:00]} Bxd6 {[%emt 0:00:00] Black mates.} 74. Ke3 {[%emt 0:00:00]} Ke5 {[%emt 0:00:00]} 75. Kf3 {[%emt 0:00:00]} Kxd5 {[%emt 0:00:00]} 76. Ke3 {[%emt 0:00:00]} Ke5 {[%emt 0:00:00][%cal Bd5e5,Be5f4,Bf4f3][%mdl 32]} 77. Kf3 {[%emt 0:00:00]} Bc5 {[%emt 0:00:00]} 78. Ke2 {[%emt 0:00:00]} Kf4 {[%emt 0:00:00]} 79. Ke1 {[%emt 0:00:00]} Kf3 {[%emt 0:00:00]} 80. Kf1 {[%emt 0:00:00]} Ng3+ {[%emt 0:00:06]} 81. Kg1 {[%emt 0:00:00] Weighted Error Value: White=0.63/Black=0.41} 0-1

[Event "FRA-ch Teams Top 16-B 2022"]
[Site "Chartres"]
[Date "2022.06.12"]
[Round "4.17"]
[White "Donchenko, Alexander"]
[Black "Erigaisi Arjun"]
[Result "1-0"]
[ECO "E94"]
[WhiteElo "2599"]
[BlackElo "2675"]
[Annotator "TA"]
[PlyCount "87"]
[EventDate "2022.06.09"]
[EventType "team-tourn"]
[EventCountry "FRA"]
[SourceTitle "playchess.com"]
[Source "ChessBase"]
[SourceQuality "1"]
[TimeControl "40/5400+30:1800+30"]

{[%evp 15,87,0,25,29,39,25,31,25,31,14,33,7,0,0,23,26,34,12,17,7,0,0,20,0,30,33,47,29,32,41,53,0,-8,-40,10,11,21,0,0,0,0,0,0,0,0,0,0,0,609,-201,0,0,22,15,20,18,29,8,7,12,27,31,23,14,15,14,16,19,128,109,532,518,497,464]} 1. c4 {[%emt 0:00:36]} Nf6 {[%emt 0:00:18]} 2. Nf3 {[%emt 0:00:38]} g6 {[%emt 0:00:14]} 3. Nc3 {[%emt 0:01:06]} Bg7 {[%emt 0:00:08]} 4. e4 {[%emt 0:00:29]} d6 {[%emt 0:00:06]} 5. d4 {[%emt 0:00:11]} O-O {[%emt 0:00:09]} 6. Be2 {[%emt 0:00:25]} e5 {[%emt 0:00:07]} 7. O-O {[%emt 0:00:42]} Na6 {[%emt 0:00:06]} 8. Re1 {[%emt 0:06:05]} Bg4 {[%emt 0:01:05]} 9. Be3 {[%emt 0:04:08] E94: King's Indian: Classical: 6 Be2 e5 7 0-0: Various Black 7th moves.} Bxf3 {[%emt 0:00:07]} 10. Bxf3 {[%emt 0:00:06]} exd4 {[%emt 0:00:06]} 11. Bxd4 {[%emt 0:00:22] White is slightly better.} Re8 {[%emt 0:00:34] [#]} 12. Rb1 $5 $146 {[%emt 0:10:58][%mdl 8] An interesting novelty.} ({Predecessor:} 12. Qd2 Nc5 13. Rad1 Ne6 14. Be3 h5 15. e5 dxe5 16. Bxb7 Rb8 17. Bc6 Qxd2 18. Rxd2 {0-1 (40) Van Wely,L (2615)-Mamedov,R (2654) chess24.com INT 2020}) 12... c6 {[%emt 0:03:02]} 13. Be3 {[%emt 0:03:29]} Qe7 {[%emt 0:08:26]} 14. Qd2 {[%emt 0:04:35]} Nd7 {[%emt 0:08:24]} 15. Rbd1 {[%emt 0:04:03]} Be5 {[%emt 0:03:08]} 16. Bg5 {[%emt 0:04:39]} Nf6 {[%emt 0:16:02]} 17. Ne2 {[%emt 0:11:44]} Nc5 {[%emt 0:01:06]} 18. Nd4 {[%emt 0:01:22]} a5 {[%emt 0:05:31]} 19. b3 {[%emt 0:01:12]} Qc7 {[%emt 0:04:52]} 20. g3 {[%emt 0:01:26]} Nfd7 {[%emt 0:00:33]} 21. Bg2 {[%emt 0:04:50]} Bf6 {[%emt 0:06:33]} 22. Bh6 {[%emt 0:05:17]} Ne5 {[%emt 0:01:30]} 23. Qc2 {[%emt 0:01:34] Prevents Ned3.} (23. Qe2 $14) 23... Qb6 $11 {[%emt 0:02:14][%cal Oc5d3]} 24. Nf3 {[%emt 0:02:03]} Nxf3+ {[%emt 0:13:19]} (24... a4 $15) 25. Bxf3 {[%emt 0:00:03] This bishop pair is nice.} Be5 {[%emt 0:00:02]} 26. Qd2 {[%emt 0:03:18]} Qb4 {[%emt 0:00:59] [#] Hoping for ...Bc3.} 27. Re2 {[%emt 0:08:24]} Ne6 {[%emt 0:00:55]} 28. Be3 {[%emt 0:00:54]} Qxd2 {[%emt 0:08:11]} 29. Rexd2 {[%emt 0:02:16]} a4 {[%emt 0:00:07]} 30. b4 {[%emt 0:03:12]} Bc3 {[%emt 0:04:01][%csl LRb4,LRd2]} 31. Rd3 {[%emt 0:15:53]} d5 $2 {[%mdl 8192]} 32. Rxd5 $4 {[%emt 0:00:00][%mdl 8192]} (32. exd5 $18 {and all is fine.} cxd5 33. Rxc3) 32... Bxb4 {[%emt 0:00:35]} ({Black should play} 32... cxd5 $19 33. exd5 Nf8) 33. Rd7 {[%emt 0:00:00]} Bc5 {[%emt 0:01:03]} 34. Rxb7 {[%emt 0:00:00]} Bxe3 {[%emt 0:00:08]} 35. fxe3 {[%emt 0:00:00]} Rab8 {[%emt 0:03:41]} 36. Rdb1 {[%emt 0:00:00]} Rxb7 {[%emt 0:02:31]} 37. Rxb7 {[%emt 0:00:00][%mdl 4096] Endgame KRB-KRN} Rd8 {[%emt 0:00:12]} 38. e5 {[%emt 0:00:00]} Rd2 {[%emt 0:04:15]} 39. Bxc6 {[%emt 0:00:00]} Rxa2 {[%emt 0:00:06]} 40. Ra7 {[%emt 0:00:00]} Re2 $1 {[%emt 0:02:17]} 41. Be8 {[%emt 0:33:01]} Kf8 {[%emt 0:32:54]} (41... Ng5 $1 $11 {keeps the balance.}) 42. Bxf7 $16 {[%emt 0:00:00] White is more active.} ({Of course not} 42. Bxa4 $6 Rxe3 43. Bc6 Rxe5 $11) 42... a3 $2 {[%emt 0:00:00][%mdl 8192]} 43. Bxe6 $18 {[%emt 0:00:00]} a2 {[%emt 0:00:00] [#]} 44. Rf7+ $1 {[%emt 0:00:00] Weighted Error Value: White=0.31/Black=0.46} ({Not} 44. Kf1 Rb2 $16) 1-0

[Event "FRA-ch Teams Top 16-B 2022"]
[Site "Chartres"]
[Date "2022.06.12"]
[Round "4.18"]
[White "Nihal Sarin"]
[Black "Hamitevici, Vladimir"]
[Result "1-0"]
[ECO "A36"]
[WhiteElo "2646"]
[BlackElo "2482"]
[Annotator "TA"]
[PlyCount "53"]
[EventDate "2022.06.09"]
[EventType "team-tourn"]
[EventCountry "FRA"]
[SourceTitle "playchess.com"]
[Source "ChessBase"]
[SourceQuality "1"]
[TimeControl "40/5400+30:1800+30"]

{[%evp 9,52,6,8,0,6,9,9,8,7,0,18,0,19,38,72,77,79,33,48,72,102,47,52,40,53,47,51,47,33,47,70,0,68,2,60,21,108,113,121,131,142,133,471,453,29999]} 1. g3 {[%emt 0:00:34]} c5 {[%emt 0:02:44]} 2. Bg2 {[%emt 0:00:32]} Nc6 {[%emt 0:02:39]} 3. c4 {[%emt 0:01:40]} g6 {[%emt 0:01:45]} 4. Nc3 {[%emt 0:00:04]} Bg7 {[%emt 0:00:07]} 5. d3 {[%emt 0:00:04]} d6 {[%emt 0:00:56]} 6. Qd2 {[%emt 0:00:07] A36: Symmetrical English vs ...g6: 4 Bg2 Bg7.} e5 {[%emt 0:11:39]} 7. e3 {[%emt 0:11:50]} Nge7 {[%emt 0:01:01]} 8. Nge2 {[%emt 0:00:05] The position is equal.} h5 {[%emt 0:10:34]} 9. h4 {[%emt 0:01:13]} Bg4 {[%emt 0:00:28] [#]} 10. b3 $146 {[%emt 0:03:37]} ({Predecessor:} 10. Rb1 O-O 11. O-O Qd7 12. Kh2 Rab8 13. b3 a6 14. a4 Nb4 15. d4 Qc7 16. dxc5 dxc5 {0-1 (38) Palin,D (2101)-Scerbin,D (2356) Nalchik 2014}) 10... Bh6 {[%emt 0:05:09]} 11. Ne4 {[%emt 0:12:11]} Kf8 {[%emt 0:13:02][%cal Oc6d4]} 12. Bb2 {[%emt 0:31:05]} Nf5 {[%emt 0:09:14][%cal Oc6d4]} 13. f4 {[%emt 0:01:16]} (13. O-O $16) 13... Bxe2 {[%emt 0:11:14]} 14. Qxe2 {[%emt 0:01:58]} Bg7 {[%emt 0:00:12]} 15. O-O-O {[%emt 0:05:12]} (15. O-O $16) 15... a5 $14 {[%emt 0:02:41]} 16. Bh3 $1 {[%emt 0:04:12] And now Rhf1 would win.} a4 {[%emt 0:03:02]} 17. bxa4 $1 {[%emt 0:00:09]} Rxa4 {[%emt 0:05:32]} 18. Bxf5 {[%emt 0:00:15]} gxf5 {[%emt 0:03:03]} 19. Nc3 {[%emt 0:00:13]} Ra6 {[%emt 0:02:08]} 20. a3 {[%emt 0:04:49]} ({White should try} 20. fxe5 $14 dxe5 21. a3) 20... Ne7 {[%emt 0:05:32]} (20... exf4 $11 21. gxf4 Bxc3 22. Bxc3 Rg8) 21. Rhf1 {[%emt 0:02:27]} (21. Nb5 $14) 21... Rh6 {[%emt 0:01:37]} (21... Rg8 $11) 22. Nb5 {[%emt 0:02:02]} Qa5 {[%emt 0:03:53]} (22... Kg8 $11) 23. e4 $16 {[%emt 0:03:52]} fxe4 {[%emt 0:02:06] [#]} 24. fxe5 $1 {[%emt 0:03:53] White is more active.} ({Don't play} 24. dxe4 $6 Nc6 $14) 24... dxe5 {[%emt 0:00:37]} 25. dxe4 {[%emt 0:01:58] Strongly threatening Bc3.} Qb6 $2 {[%emt 0:01:18][%mdl 8192]} (25... Raf6 $16) 26. Rd7 $18 {[%emt 0:01:53] Hoping for Nc7.} Qe6 {[%emt 0:00:40]} (26... Rf6 $18 27. Rxf6 Bxf6) 27. Rd8# {[%emt 0:00:07] Weighted Error Value: White=0.13 (very precise) /Black=0.80} 1-0

[Event "FRA-ch Teams Top 16-B 2022"]
[Site "Chartres"]
[Date "2022.06.12"]
[Round "4.19"]
[White "Brunner, Nicolas"]
[Black "Mendonca, Leon Luke"]
[Result "1/2-1/2"]
[ECO "D41"]
[WhiteElo "2454"]
[BlackElo "2551"]
[Annotator "TA"]
[PlyCount "124"]
[EventDate "2022.06.09"]
[EventType "team-tourn"]
[EventCountry "FRA"]
[SourceTitle "playchess.com"]
[Source "ChessBase"]
[SourceQuality "1"]
[TimeControl "40/5400+30:1800+30"]

{[%evp 25,124,14,38,30,57,57,62,58,62,60,55,69,68,45,72,70,64,50,68,60,70,62,65,66,57,34,34,34,34,34,34,14,41,41,41,0,0,0,2,0,0,0,0,0,0,0,0,0,0,0,0,0,0,0,0,0,0,0,0,0,0,0,0,0,0,0,0,0,0,0,0,0,0,0,0,0,0,0,0,0,0,0,0,0,0,0,0,0,0,0,0,0,0,0,0,0,0,0,0,0,0]} 1. d4 {[%emt 0:00:18]} Nf6 {[%emt 0:00:32]} 2. c4 {[%emt 0:00:05]} e6 {[%emt 0:00:50]} 3. Nf3 {[%emt 0:00:06]} d5 {[%emt 0:00:37]} 4. Nc3 {[%emt 0:00:06]} c5 {[%emt 0:00:52]} 5. cxd5 {[%emt 0:00:22]} Nxd5 {[%emt 0:00:17]} 6. e4 {[%emt 0:00:26]} Nxc3 {[%emt 0:00:06]} 7. bxc3 {[%emt 0:00:03]} cxd4 {[%emt 0:00:12]} 8. cxd4 {[%emt 0:00:04]} Bb4+ {[%emt 0:00:10]} 9. Bd2 {[%emt 0:00:04]} Bxd2+ {[%emt 0:00:07]} 10. Qxd2 {[%emt 0:00:05]} O-O {[%emt 0:00:32]} 11. Bc4 {[%emt 0:01:11]} Nc6 {[%emt 0:07:40][%cal Bb8c6,Bc6a5,Ba5c4][%mdl 32]} 12. O-O {[%emt 0:01:09]} b6 {[%emt 0:01:58]} 13. Rad1 {[%emt 0:03:43]} Bb7 {[%emt 0:00:42]} 14. d5 {[%emt 0:06:46] D41: Queen's Gambit Declined: Semi-Tarrasch with 5 cxd5.} Na5 {[%emt 0:01:17] [#]} 15. dxe6 $1 {[%emt 0:04:52]} Nxc4 {[%emt 0:00:51]} (15... Qxd2 16. exf7+) 16. exf7+ {[%emt 0:00:05] White is slightly better.} Kh8 {[%emt 0:00:18]} 17. Qxd8 {[%emt 0:00:44] White is more active.} Raxd8 {[%emt 0:01:28]} 18. Rxd8 {[%emt 0:00:35]} Rxd8 {[%emt 0:00:04]} 19. e5 $1 {[%emt 0:00:16]} Rc8 $1 {[%emt 0:07:20]} (19... Bxf3 $2 20. e6 Ne5 21. e7 Nxf7 22. exd8=Q+ Nxd8 23. gxf3 $18) 20. e6 {[%emt 0:03:57] [#] White threatens e7 and mate.} Bd5 {[%emt 0:01:54]} 21. Ng5 {[%emt 0:08:25] Black must now prevent Rc1.} Nd6 $1 {[%emt 0:02:59]} 22. Rd1 {[%emt 0:04:20]} Bxe6 {[%emt 0:00:48] [#]} 23. f8=Q+ $146 {[%emt 0:04:29]} ({Predecessor:} 23. Nxe6 Nxf7 24. g3 Re8 25. Rd7 Rxe6 26. Rxf7 Re1+ 27. Kg2 h5 28. Rxa7 Kh7 29. h4 Rc1 30. Ra6 Ra1 31. Kf3 b5 32. Ra5 Kg6 33. a3 {½-½ (33) Doren,D (2280)-Vekelis,G (2351) ICCF email 2014}) 23... Rxf8 {[%emt 0:00:59]} 24. Nxe6 $14 {[%emt 0:00:04][%mdl 4096] Endgame KRN-KRN} Rc8 {[%emt 0:00:23]} 25. g3 {[%emt 0:01:43]} Ne4 {[%emt 0:36:35]} 26. Rd7 {[%emt 0:02:51][%csl LRa7,LRg7]} Nc5 {[%emt 0:12:50]} 27. Nxc5 {[%emt 0:00:22]} bxc5 {[%emt 0:00:03] KR-KR} 28. Kf1 {[%emt 0:06:20]} h6 {[%emt 0:11:12]} 29. Rxa7 {[%emt 0:04:26]} c4 {[%emt 0:00:54] Strongly threatening ...c3.} 30. Ke2 {[%emt 0:02:44]} c3 {[%emt 0:03:56] The position is equal.} 31. Kd1 {[%emt 0:00:16]} Rd8+ {[%emt 0:00:23]} 32. Kc2 {[%emt 0:01:58] aiming for a4.} Rd2+ {[%emt 0:00:04]} 33. Kxc3 {[%emt 0:00:05]} Rxf2 {[%emt 0:00:04]} 34. Kb3 {[%emt 0:14:46]} Rxh2 {[%emt 0:00:45]} 35. Rc7 {[%emt 0:00:13]} Kh7 {[%emt 0:05:48]} 36. a4 {[%emt 0:00:51]} Rh1 {[%emt 0:01:02]} 37. Rc3 {[%emt 0:04:50]} Kg6 {[%emt 0:01:12]} 38. a5 {[%emt 0:00:49] And now Ka4 would win.} Ra1 {[%emt 0:00:47]} 39. Kb4 {[%emt 0:00:07]} Kf5 {[%emt 0:00:53]} 40. Ra3 {[%emt 0:00:46]} Rb1+ {[%emt 0:00:31]} 41. Kc5 {[%emt 0:30:28] a6 is the strong threat.} Kg4 {[%emt 0:03:42]} 42. a6 {[%emt 0:00:00]} Rb8 {[%emt 0:00:41]} 43. a7 {[%emt 0:00:00]} Ra8 {[%emt 0:00:02]} 44. Kb6 {[%emt 0:00:00]} h5 {[%emt 0:01:44]} 45. Kb7 {[%emt 0:00:00]} Rf8 {[%emt 0:01:49]} 46. Rc3 {[%emt 0:00:00] Threatens to win with Rc8.} g5 {[%emt 0:01:25]} 47. Rc8 {[%emt 0:00:00]} Rf7+ {[%emt 0:00:09]} 48. Rc7 {[%emt 0:00:00]} Rf8 {[%emt 0:00:05]} 49. Rc8 {[%emt 0:00:00]} Rf7+ {[%emt 0:00:04]} 50. Rc7 {[%emt 0:00:00]} Rf8 {[%emt 0:00:06]} 51. Rg7 {[%emt 0:00:00]} Kxg3 {[%emt 0:03:43]} 52. Rxg5+ {[%emt 0:00:00]} Kh4 {[%emt 0:00:04]} 53. Rg7 {[%emt 0:00:00]} Kh3 $1 {[%emt 0:00:14]} 54. a8=Q {[%emt 0:00:00]} Rxa8 {[%emt 0:00:03]} 55. Kxa8 $11 {[%emt 0:00:00] KR-KP} h4 {[%emt 0:00:04][%cal Bh5h4,Bh4h3][%mdl 32]} 56. Kb7 {[%emt 0:00:00]} Kh2 {[%emt 0:00:03]} 57. Kc6 {[%emt 0:00:00]} h3 $1 {[%emt 0:00:02]} 58. Kd5 {[%emt 0:00:00]} Kh1 {[%emt 0:00:02]} 59. Ke4 {[%emt 0:00:00]} h2 {[%emt 0:00:04]} 60. Ra7 {[%emt 0:00:00] Hoping for Kf3.} Kg2 {[%emt 0:00:09]} 61. Ra2+ {[%emt 0:00:00]} Kg3 {[%emt 0:00:09]} 62. Rxh2 {[%emt 0:00:00]} Kxh2 {[%emt 0:00:02] Weighted Error Value: White=0.02 (flawless) /Black=0.02 (flawless)} 1/2-1/2